[Event "V Open LLucmajor"]
[Site "LLucmajor"]
[Date "2016.05.15"]
[Round "8"]
[White "Abergel, Thal"]
[Black "Levin, Felix"]
[Result "0-1"]
[ECO "C54"]
[WhiteElo "2450"]
[BlackElo "2511"]
[PlyCount "68"]
[EventDate "2016.??.??"]
[EventCountry "ESP"]
[TimeControl "5400+30"]
[WhiteClock "0:04:52"]
[BlackClock "0:13:24"]

1. e4 {[%emt 0:00:00]} e5 {[%emt 0:00:00]} 2. Nf3 {[%emt 0:00:00]} Nc6 {
[%emt 0:00:00]} 3. Bc4 Bc5 {[%emt 0:00:09]} 4. c3 {[%emt 0:00:03]} Nf6 {
[%emt 0:00:15]} 5. d3 {[%emt 0:00:20]} O-O {[%emt 0:03:37]} 6. Bb3 {[%emt 0:00:
31]} d5 {[%emt 0:05:33]} 7. Qe2 {[%emt 0:00:26]} dxe4 {[%emt 0:06:51]} 8. dxe4
{[%emt 0:00:41]} h6 {[%emt 0:05:09]} 9. O-O {[%emt 0:01:16]} Qe7 {[%emt 0:01:
17]} 10. Bc2 {[%emt 0:12:11]} a5 {[%emt 0:02:37]} 11. a4 {[%emt 0:01:35]} Nh5 {
[%emt 0:09:29]} 12. Na3 {[%emt 0:03:06]} Bg4 {[%emt 0:02:08]} 13. Nc4 {[%emt 0:
05:48]} Qf6 {[%emt 0:03:55]} 14. Bd1 {[%emt 0:08:31]} Rad8 {[%emt 0:07:09]} 15.
Ne3 {[%emt 0:12:05]} Nf4 {[%emt 0:03:22]} 16. Qc4 {[%emt 0:13:58]} Bxe3 {
[%emt 0:02:54]} 17. fxe3 {[%emt 0:05:49]} Nxg2 {[%emt 0:02:09]} 18. Ne1 {
[%emt 0:07:35]} Qg6 {[%emt 0:01:44]} 19. Bxg4 {[%emt 0:01:46]} Nxe1 {[%emt 0:
02:51]} 20. Qe2 {[%emt 0:00:06]} h5 {[%emt 0:00:53]} 21. Rxe1 {[%emt 0:00:09]}
hxg4 {[%emt 0:00:14]} 22. Qc2 {[%emt 0:02:54]} g3 {[%emt 0:07:53]} 23. h3 {
[%emt 0:03:08]} f5 {[%emt 0:00:31]} 24. exf5 {[%emt 0:00:10]} Rxf5 {[%emt 0:00:
21]} 25. e4 {[%emt 0:01:53]} Rf2 {[%emt 0:00:07]} 26. Re2 {[%emt 0:02:27]} Rdf8
{[%emt 0:12:41]} 27. Be3 {[%emt 0:00:26]} R8f3 {[%emt 0:00:09]} 28. Rae1 {
[%emt 0:02:42]} Kh7 {[%emt 0:00:36]} 29. Qd1 {[%emt 0:02:13]} Ne7 {[%emt 0:01:
52]} 30. Qd7 {[%emt 0:01:46]} Rxe2 {[%emt 0:00:26]} 31. Rxe2 {[%emt 0:00:13]}
Qxe4 {[%emt 0:00:09]} 32. Qd2 {[%emt 0:02:35]} Qf5 {[%emt 0:01:30]} 33. Qe1 {
[%emt 0:04:50]} Ng6 {[%emt 0:04:33]} 34. Rg2 {[%emt 0:00:55]} Rxe3 {[%emt 0:00:
32]} 0-1

[Event "V Open LLucmajor"]
[Site "LLucmajor"]
[Date "2016.05.15"]
[Round "8"]
[White "Almagro Llamas, Pablo"]
[Black "Granda Zuniga, Julio E"]
[Result "0-1"]
[ECO "B51"]
[WhiteElo "2422"]
[BlackElo "2686"]
[PlyCount "204"]
[EventDate "2016.??.??"]
[EventCountry "ESP"]
[TimeControl "5400+30"]
[WhiteClock "0:02:25"]
[BlackClock "0:05:06"]

1. e4 {[%emt 0:00:00]} c5 {[%emt 0:00:33]} 2. Nf3 {[%emt 0:00:00]} d6 {[%emt 0:
00:06]} 3. Bb5+ {[%emt 0:01:32]} Nd7 {[%emt 0:00:28]} 4. d4 {[%emt 0:04:07]}
cxd4 {[%emt 0:00:18]} 5. Qxd4 {[%emt 0:01:03]} e5 {[%emt 0:03:03]} 6. Qd3 {
[%emt 0:03:18]} Be7 {[%emt 0:00:14]} 7. Nc3 {[%emt 0:01:27]} Ngf6 {[%emt 0:00:
05]} 8. Bg5 {[%emt 0:10:47]} O-O {[%emt 0:01:32]} 9. Bxd7 {[%emt 0:06:50]} Qxd7
{[%emt 0:02:13]} 10. Rd1 {[%emt 0:08:25]} Rd8 {[%emt 0:07:51]} 11. O-O {
[%emt 0:07:47]} Qe6 {[%emt 0:16:26]} 12. Bxf6 {[%emt 0:12:01]} Bxf6 {[%emt 0:
00:57]} 13. Nd5 {[%emt 0:00:27]} Rd7 {[%emt 0:00:12]} 14. c4 {[%emt 0:06:20]}
b6 {[%emt 0:04:33]} 15. a4 {[%emt 0:00:45]} Bb7 {[%emt 0:00:46]} 16. Ra1 {
[%emt 0:01:24]} Bd8 {[%emt 0:00:45]} 17. Nd2 {[%emt 0:05:21]} g6 {[%emt 0:07:
25]} 18. Rae1 {[%emt 0:03:45]} Rc8 {[%emt 0:06:30]} 19. b3 {[%emt 0:01:30]} a6
{[%emt 0:09:48]} 20. f4 {[%emt 0:05:03]} exf4 {[%emt 0:00:24]} 21. Nxf4 {
[%emt 0:00:08]} Qe8 {[%emt 0:13:45]} 22. Nd5 {[%emt 0:00:31]} Rb8 {[%emt 0:03:
08]} 23. Nf3 {[%emt 0:01:46]} Bxd5 {[%emt 0:05:24]} 24. exd5 {[%emt 0:00:45]}
Re7 {[%emt 0:00:09]} 25. Rxe7 {[%emt 0:02:15]} Bxe7 {[%emt 0:00:25]} 26. Nd4 {
[%emt 0:02:44]} Bg5 {[%emt 0:00:18]} 27. Nc2 {[%emt 0:09:23]} Qd7 {[%emt 0:02:
25]} 28. Qg3 {[%emt 0:00:46]} Bh6 {[%emt 0:00:23]} 29. Qf2 {[%emt 0:00:43]} Re8
{[%emt 0:08:55]} 30. Re1 {[%emt 0:03:01]} Rxe1+ {[%emt 0:00:07]} 31. Qxe1 {
[%emt 0:00:11]} a5 {[%emt 0:02:22]} 32. Qe4 {[%emt 0:01:04]} f5 {[%emt 0:02:19]
} 33. Qd4 {[%emt 0:00:31]} Qd8 {[%emt 0:00:30]} 34. b4 {[%emt 0:00:38]} Qg5 {
[%emt 0:00:39]} 35. Kf2 {[%emt 0:00:38]} Qc1 {[%emt 0:00:14]} 36. Qd3 {[%emt 0:
00:16]} axb4 {[%emt 0:00:14]} 37. Nxb4 {[%emt 0:00:07]} Bf4 {[%emt 0:01:10]}
38. Qe2 {[%emt 0:00:29]} Be5 {[%emt 0:00:07]} 39. Nc6 {[%emt 0:00:13]} Qf4+ {
[%emt 0:00:24]} 40. Ke1 {[%emt 0:00:37]} Qc1+ {[%emt 0:00:06]} 41. Kf2 {
[%emt 0:00:10]} Qf4+ {[%emt 0:00:04]} 42. Ke1 {[%emt 0:00:05]} Bc3+ {[%emt 0:
00:49]} 43. Kd1 {[%emt 0:00:01]} Qxh2 {[%emt 0:00:15]} 44. Qe6+ {[%emt 0:02:08]
} Kg7 {[%emt 0:00:02]} 45. Qe7+ {[%emt 0:00:31]} Kh6 {[%emt 0:02:50]} 46. Qe3+
{[%emt 0:00:10]} Kh5 {[%emt 0:01:09]} 47. Qxc3 {[%emt 0:00:05]} Qxg2 {[%emt 0:
00:06]} 48. Nd4 {[%emt 0:01:04]} Kg4 {[%emt 0:00:47]} 49. Ne6 {[%emt 0:01:01]}
Qf1+ {[%emt 0:00:21]} 50. Kd2 {[%emt 0:00:14]} Qf2+ {[%emt 0:00:10]} 51. Kd1 {
[%emt 0:00:21]} Qf1+ {[%emt 0:00:02]} 52. Kd2 {[%emt 0:00:27]} Qf2+ {[%emt 0:
00:08]} 53. Kc1 {[%emt 0:00:42]} f4 {[%emt 0:00:15]} 54. Qf6 {[%emt 0:00:27]}
Qf1+ {[%emt 0:00:12]} 55. Kd2 {[%emt 0:00:27]} Qxc4 {[%emt 0:00:04]} 56. Ke1 {
[%emt 0:00:55]} Qe4+ {[%emt 0:00:34]} 57. Kf1 {[%emt 0:00:24]} Qf3+ {[%emt 0:
00:23]} 58. Kg1 {[%emt 0:00:36]} Qd1+ {[%emt 0:01:44]} 59. Kf2 {[%emt 0:00:11]}
Qc2+ {[%emt 0:00:13]} 60. Kg1 {[%emt 0:00:16]} Qc1+ {[%emt 0:00:54]} 61. Kf2 {
[%emt 0:00:16]} Qd2+ {[%emt 0:00:26]} 62. Kf1 {[%emt 0:00:34]} Kg3 {[%emt 0:00:
37]} 63. Qg5+ {[%emt 0:00:56]} Kf3 {[%emt 0:00:01]} 64. Nd4+ {[%emt 0:00:26]}
Ke3 {[%emt 0:00:48]} 65. Qe7+ {[%emt 0:00:49]} Kxd4 {[%emt 0:00:10]} 66. Qxd6 {
[%emt 0:00:05]} Qc1+ {[%emt 0:00:50]} 67. Kg2 {[%emt 0:00:27]} Qc2+ {[%emt 0:
00:42]} 68. Kf3 {[%emt 0:00:34]} Qe4+ {[%emt 0:00:09]} 69. Kf2 {[%emt 0:00:02]}
Qe3+ {[%emt 0:00:31]} 70. Kf1 {[%emt 0:00:07]} Qc1+ {[%emt 0:01:10]} 71. Kg2 {
[%emt 0:00:25]} Qc5 {[%emt 0:00:48]} 72. Qxf4+ {[%emt 0:00:07]} Kxd5 {[%emt 0:
00:03]} 73. Qf7+ {[%emt 0:00:09]} Kd4 {[%emt 0:00:38]} 74. Qxh7 {[%emt 0:00:12]
} g5 {[%emt 0:00:40]} 75. Qg7+ {[%emt 0:01:29]} Kc4 {[%emt 0:00:14]} 76. Qb2 {
[%emt 0:00:31]} Kd3 {[%emt 0:00:49]} 77. Qb3+ {[%emt 0:00:34]} Ke4 {[%emt 0:00:
12]} 78. Qe6+ {[%emt 0:00:22]} Kd4 {[%emt 0:00:18]} 79. Qf6+ {[%emt 0:00:30]}
Kd3 {[%emt 0:01:18]} 80. Qg6+ {[%emt 0:01:42]} Kc4 {[%emt 0:00:32]} 81. Qb1 {
[%emt 0:00:23]} Qd5+ {[%emt 0:00:33]} 82. Kf2 {[%emt 0:00:20]} Qd2+ {[%emt 0:
00:12]} 83. Kg1 {[%emt 0:00:18]} Qb4 {[%emt 0:00:31]} 84. Qc1+ {[%emt 0:00:54]}
Kb3 {[%emt 0:00:11]} 85. Qxg5 {[%emt 0:00:37]} Kxa4 {[%emt 0:00:12]} 86. Qd8 {
[%emt 0:00:35]} Qc5+ {[%emt 0:00:54]} 87. Kf1 {[%emt 0:00:12]} b5 {[%emt 0:00:
13]} 88. Qd1+ {[%emt 0:00:25]} Ka5 {[%emt 0:00:03]} 89. Qa1+ {[%emt 0:00:13]}
Kb6 {[%emt 0:00:01]} 90. Qf6+ {[%emt 0:00:37]} Kb7 {[%emt 0:00:00]} 91. Ke2 {
[%emt 0:00:52]} b4 {[%emt 0:00:15]} 92. Qf7+ {[%emt 0:00:52]} Ka6 {[%emt 0:00:
13]} 93. Kd1 {[%emt 0:00:26]} Qc3 {[%emt 0:00:32]} 94. Qa2+ {[%emt 0:00:29]}
Kb5 {[%emt 0:00:02]} 95. Qd5+ {[%emt 0:00:06]} Ka4 {[%emt 0:00:03]} 96. Qd7+ {
[%emt 0:00:36]} Ka3 {[%emt 0:00:34]} 97. Qa7+ {[%emt 0:00:14]} Kb2 {[%emt 0:01:
21]} 98. Qf2+ {[%emt 0:00:10]} Kb1 {[%emt 0:00:18]} 99. Qf5+ {[%emt 0:00:08]}
Ka2 {[%emt 0:00:10]} 100. Qa5+ {[%emt 0:00:20]} Kb2 {[%emt 0:00:08]} 101. Qf5 {
[%emt 0:00:30]} Qc1+ {[%emt 0:00:16]} 102. Ke2 {[%emt 0:00:08]} Qc2+ {[%emt 0:
00:01]} 0-1

[Event "V Open LLucmajor"]
[Site "LLucmajor"]
[Date "2016.05.15"]
[Round "8"]
[White "Edouard, Romain"]
[Black "Stremavicius, Titas"]
[Result "1-0"]
[ECO "A80"]
[WhiteElo "2641"]
[BlackElo "2443"]
[PlyCount "59"]
[EventDate "2016.??.??"]
[EventCountry "ESP"]
[TimeControl "5400+30"]
[WhiteClock "0:32:15"]
[BlackClock "0:29:53"]

1. d4 f5 2. Bg5 {[%emt 0:04:01]} g6 {[%emt 0:03:34]} 3. Nc3 {[%emt 0:00:23]} d5
{[%emt 0:01:49]} 4. h4 {[%emt 0:02:48]} Bg7 {[%emt 0:00:48]} 5. e3 {[%emt 0:03:
04]} Nh6 {[%emt 0:04:35]} 6. Qf3 {[%emt 0:07:22]} c6 {[%emt 0:00:48]} 7. Qg3 {
[%emt 0:01:09]} Nf7 {[%emt 0:01:32]} 8. Bf4 {[%emt 0:01:51]} Be6 {[%emt 0:10:
46]} 9. h5 {[%emt 0:03:54]} Nd7 {[%emt 0:00:53]} 10. Nf3 {[%emt 0:02:55]} Nf6 {
[%emt 0:11:12]} 11. Ne5 {[%emt 0:04:15]} gxh5 {[%emt 0:01:57]} 12. Be2 {
[%emt 0:07:57]} Rg8 {[%emt 0:05:24]} 13. Bxh5 {[%emt 0:03:41]} Nxh5 {[%emt 0:
00:23]} 14. Rxh5 {[%emt 0:00:04]} Qb6 {[%emt 0:02:02]} 15. Rxh7 {[%emt 0:12:27]
} Qxb2 {[%emt 0:05:03]} 16. Nd1 {[%emt 0:01:42]} Qxa1 {[%emt 0:01:55]} 17. Qg6
{[%emt 0:01:04]} Bxe5 {[%emt 0:00:54]} 18. Qxg8+ {[%emt 0:01:01]} Kd7 {[%emt 0:
00:02]} 19. Qxa8 {[%emt 0:00:06]} Bxf4 {[%emt 0:00:19]} 20. exf4 {[%emt 0:00:
08]} Qxd4 {[%emt 0:00:38]} 21. Qxb7+ {[%emt 0:00:06]} Kd6 {[%emt 0:00:17]} 22.
Rh3 {[%emt 0:07:14]} Qb6 {[%emt 0:13:03]} 23. Rb3 {[%emt 0:00:12]} Qa5+ {
[%emt 0:00:14]} 24. c3 {[%emt 0:01:20]} Nd8 {[%emt 0:00:17]} 25. Qb4+ {[%emt 0:
01:22]} Qxb4 {[%emt 0:00:33]} 26. cxb4 {[%emt 0:00:04]} c5 {[%emt 0:02:36]} 27.
bxc5+ {[%emt 0:01:02]} Kxc5 {[%emt 0:00:08]} 28. Nb2 {[%emt 0:00:29]} Nc6 {
[%emt 0:02:25]} 29. Nd3+ {[%emt 0:00:28]} Kd4 {[%emt 0:00:30]} 30. Ra3 {
[%emt 0:00:36]} 1-0

[Event "V Open LLucmajor"]
[Site "LLucmajor"]
[Date "2016.05.15"]
[Round "8"]
[White "Fedorchuk, Sergey A"]
[Black "Minzer, Claudio Javier"]
[Result "1-0"]
[ECO "B35"]
[WhiteElo "2626"]
[BlackElo "2432"]
[PlyCount "93"]
[EventDate "2016.??.??"]
[EventCountry "ESP"]
[TimeControl "5400+30"]
[WhiteClock "0:02:32"]
[BlackClock "0:03:52"]

1. e4 {[%emt 0:00:00]} c5 {[%emt 0:00:00]} 2. Nf3 {[%emt 0:00:06]} g6 {[%emt 0:
00:00]} 3. d4 {[%emt 0:00:52]} cxd4 {[%emt 0:00:00]} 4. Nxd4 {[%emt 0:00:31]}
Nc6 {[%emt 0:00:04]} 5. Nc3 {[%emt 0:00:58]} Bg7 {[%emt 0:00:17]} 6. Be3 {
[%emt 0:00:10]} Nf6 {[%emt 0:00:13]} 7. Bc4 {[%emt 0:00:07]} O-O {[%emt 0:00:
32]} 8. Bb3 {[%emt 0:00:19]} a5 {[%emt 0:00:22]} 9. O-O {[%emt 0:02:18]} Nxd4 {
[%emt 0:00:11]} 10. Bxd4 {[%emt 0:03:42]} d6 {[%emt 0:00:07]} 11. Re1 {[%emt 0:
10:11]} Bd7 {[%emt 0:01:51]} 12. a4 {[%emt 0:14:18]} Bc6 {[%emt 0:01:32]} 13.
Qd3 {[%emt 0:01:42]} Nd7 {[%emt 0:02:30]} 14. Bxg7 {[%emt 0:01:19]} Kxg7 {
[%emt 0:00:09]} 15. Qd4+ {[%emt 0:00:06]} Kg8 {[%emt 0:01:30]} 16. Re3 {
[%emt 0:00:17]} Nc5 {[%emt 0:26:55]} 17. Bc4 {[%emt 0:02:26]} b6 {[%emt 0:17:
39]} 18. b3 {[%emt 0:03:38]} Ra7 {[%emt 0:01:51]} 19. Rd1 {[%emt 0:02:10]} Rd7
{[%emt 0:03:42]} 20. Bd5 {[%emt 0:14:54]} Bxd5 {[%emt 0:04:33]} 21. exd5 {
[%emt 0:17:25]} e5 {[%emt 0:06:13]} 22. dxe6 {[%emt 0:00:18]} fxe6 {[%emt 0:00:
10]} 23. Nb5 {[%emt 0:05:48]} d5 {[%emt 0:00:44]} 24. Re5 {[%emt 0:00:24]} Rf5
{[%emt 0:08:25]} 25. Rxf5 {[%emt 0:02:35]} gxf5 {[%emt 0:00:22]} 26. Qe5 {
[%emt 0:00:12]} Kf7 {[%emt 0:02:16]} 27. Nd4 {[%emt 0:01:53]} Qf8 {[%emt 0:07:
41]} 28. Re1 {[%emt 0:02:07]} Qh6 {[%emt 0:03:50]} 29. h3 {[%emt 0:04:06]} Qf6
{[%emt 0:00:53]} 30. Nc6 {[%emt 0:00:33]} Kg7 {[%emt 0:01:38]} 31. Qg3+ {
[%emt 0:00:44]} Kh6 {[%emt 0:00:47]} 32. Ne5 {[%emt 0:06:34]} Rg7 {[%emt 0:01:
07]} 33. Qf3 {[%emt 0:02:02]} Ne4 {[%emt 0:00:50]} 34. Qf4+ {[%emt 0:00:36]}
Qg5 {[%emt 0:00:16]} 35. Nd3 {[%emt 0:00:03]} Rg6 {[%emt 0:03:28]} 36. f3 {
[%emt 0:00:52]} Nc5 {[%emt 0:00:53]} 37. h4 {[%emt 0:01:18]} Qxf4 {[%emt 0:00:
18]} 38. Nxf4 {[%emt 0:00:03]} Rf6 {[%emt 0:00:03]} 39. Kf2 {[%emt 0:00:26]} d4
{[%emt 0:00:25]} 40. Kf1 {[%emt 0:01:02]} Rf7 {[%emt 0:03:38]} 41. Nxe6 {
[%emt 0:00:07]} Rd7 {[%emt 0:00:04]} 42. Nxc5 {[%emt 0:00:48]} bxc5 {[%emt 0:
00:01]} 43. Re5 {[%emt 0:00:14]} f4 {[%emt 0:00:45]} 44. Rxc5 {[%emt 0:00:24]}
d3 {[%emt 0:00:02]} 45. cxd3 {[%emt 0:00:09]} Rxd3 {[%emt 0:00:01]} 46. Rc4 {
[%emt 0:00:07]} Rxb3 {[%emt 0:00:20]} 47. Rxf4 {[%emt 0:00:04]} 1-0

[Event "V Open LLucmajor"]
[Site "LLucmajor"]
[Date "2016.05.15"]
[Round "8"]
[White "Gallardo Pina, Neus"]
[Black "Kryvoruchko, Vita"]
[Result "0-1"]
[ECO "A46"]
[WhiteElo "1894"]
[BlackElo "2166"]
[PlyCount "78"]
[EventDate "2016.??.??"]
[EventCountry "ESP"]
[TimeControl "5400+30"]

1. d4 Nf6 2. Nf3 e6 3. Bg5 d5 4. e3 Be7 5. Bd3 c5 6. c3 Nc6 7. Nbd2 h6 8. Bh4
Nd7 9. Bg3 O-O 10. O-O f5 11. h3 b6 12. Rc1 a5 13. Qe2 Bb7 14. Rfd1 Qc8 15. Nh4
Bxh4 16. Bxh4 e5 17. Qh5 e4 18. Bb5 Nf6 19. Bxf6 Rxf6 20. dxc5 bxc5 21. Nf1 Ne5
22. Ng3 c4 23. b3 Nd3 24. Rc2 f4 25. exf4 Rxf4 26. bxc4 dxc4 27. Rb1 Rb8 28.
Re2 Rf7 29. Qh4 Qc5 30. Nh5 Rbf8 31. Qg3 Qxh5 32. Bxc4 Qxe2 33. Rxb7 Qe1+ 34.
Kh2 Qxf2 35. Qg6 Qf4+ 36. Kg1 Ne5 37. Bxf7+ Nxf7 38. Qc6 e3 39. c4 Qf2+ 0-1

[Event "V Open LLucmajor"]
[Site "LLucmajor"]
[Date "2016.05.15"]
[Round "8"]
[White "Movsziszian, Karen"]
[Black "Trent, Lawrence"]
[Result "1-0"]
[ECO "C26"]
[WhiteElo "2468"]
[BlackElo "2450"]
[PlyCount "111"]
[EventDate "2016.??.??"]
[EventCountry "ESP"]
[TimeControl "5400+30"]
[WhiteClock "0:10:48"]
[BlackClock "0:02:08"]

1. e4 {[%emt 0:00:00]} e5 {[%emt 0:03:54]} 2. Nc3 {[%emt 0:01:16]} Nf6 3. g3 {
[%emt 0:00:06]} Bc5 {[%emt 0:04:12]} 4. Bg2 {[%emt 0:00:33]} a6 5. d3 {[%emt 0:
00:11]} d6 {[%emt 0:06:08]} 6. h3 {[%emt 0:00:49]} h6 7. Nge2 {[%emt 0:00:05]}
Nc6 {[%emt 0:08:43]} 8. O-O {[%emt 0:00:58]} Bd7 {[%emt 0:12:25]} 9. Kh2 {
[%emt 0:08:16]} Ba7 {[%emt 0:07:39]} 10. Rb1 {[%emt 0:03:38]} Rb8 {[%emt 0:01:
13]} 11. f4 {[%emt 0:09:59]} h5 12. Bf3 {[%emt 0:00:10]} Ng4+ {[%emt 0:20:05]}
13. Kg2 Ne3+ {[%emt 0:04:23]} 14. Bxe3 {[%emt 0:00:32]} Bxe3 {[%emt 0:00:01]}
15. Nd5 {[%emt 0:00:07]} Ba7 {[%emt 0:00:20]} 16. f5 {[%emt 0:10:31]} h4 17. g4
{[%emt 0:02:05]} Nd4 {[%emt 0:10:39]} 18. Nxd4 exd4 {[%emt 0:02:40]} 19. f6 {
[%emt 0:04:08]} g6 20. Qd2 c6 {[%emt 0:03:12]} 21. Ne7 {[%emt 0:04:23]} Qb6 {
[%emt 0:08:30]} 22. e5 {[%emt 0:14:26]} Be6 {[%emt 0:01:34]} 23. Rbe1 {[%emt 0:
06:49]} Qc5 {[%emt 0:03:47]} 24. Rf2 Bb6 25. Qf4 {[%emt 0:06:49]} Kd7 {[%emt 0:
02:22]} 26. g5 {[%emt 0:02:36]} dxe5 27. Qxe5 {[%emt 0:04:07]} Qxe5 {[%emt 0:
00:25]} 28. Rxe5 {[%emt 0:00:01]} Kd6 {[%emt 0:00:36]} 29. Re4 {[%emt 0:00:21]}
Bxa2 {[%emt 0:00:52]} 30. b3 {[%emt 0:00:10]} a5 {[%emt 0:00:11]} 31. Re1 {
[%emt 0:01:28]} a4 32. Ra1 {[%emt 0:00:03]} a3 {[%emt 0:01:08]} 33. Rxa2 {
[%emt 0:00:08]} Bc5 {[%emt 0:00:50]} 34. Re2 {[%emt 0:03:19]} Rbd8 {[%emt 0:00:
36]} 35. Re4 Kc7 {[%emt 0:00:00]} 36. Be2 {[%emt 0:02:38]} Kb6 {[%emt 0:00:30]}
37. Kf3 Rd6 38. Kg4 {[%emt 0:03:49]} Kc7 {[%emt 0:00:54]} 39. Bf3 {[%emt 0:02:
04]} Rd7 {[%emt 0:00:12]} 40. Re1 {[%emt 0:02:06]} Rdd8 {[%emt 0:00:24]} 41.
Re4 {[%emt 0:01:23]} Rd7 {[%emt 0:00:25]} 42. Re1 {[%emt 0:01:05]} Rdd8 {
[%emt 0:00:11]} 43. Be4 {[%emt 0:00:04]} Bb4 {[%emt 0:00:56]} 44. Rf1 {[%emt 0:
01:11]} Ra8 {[%emt 0:00:20]} 45. Bxg6 {[%emt 0:00:31]} fxg6 {[%emt 0:01:12]}
46. Nxg6 {[%emt 0:00:02]} Rhg8 {[%emt 0:00:07]} 47. Nxh4 {[%emt 0:00:18]} Rge8
48. g6 {[%emt 0:00:17]} Re2 {[%emt 0:01:47]} 49. g7 {[%emt 0:00:21]} Rg8 {
[%emt 0:00:11]} 50. Kh5 {[%emt 0:00:47]} Kd7 {[%emt 0:00:42]} 51. Kg6 Re6 {
[%emt 0:00:39]} 52. Kh7 {[%emt 0:01:16]} Ree8 {[%emt 0:00:13]} 53. f7 {[%emt 0:
00:25]} Rxg7+ {[%emt 0:00:03]} 54. Kxg7 {[%emt 0:00:04]} Bf8+ {[%emt 0:00:02]}
55. Kh7 {[%emt 0:00:17]} Re3 {[%emt 0:00:09]} 56. Kg8 1-0

[Event "V Open LLucmajor"]
[Site "LLucmajor"]
[Date "2016.05.15"]
[Round "8"]
[White "Narciso Dublan, Marc"]
[Black "Bracker, Frank"]
[Result "0-1"]
[ECO "D61"]
[WhiteElo "2540"]
[BlackElo "2407"]
[PlyCount "104"]
[EventDate "2016.??.??"]
[EventCountry "ESP"]
[TimeControl "5400+30"]
[WhiteClock "0:00:43"]
[BlackClock "0:00:39"]

1. d4 {[%emt 0:00:00]} Nf6 {[%emt 0:00:00]} 2. c4 {[%emt 0:00:00]} e6 {[%emt 0:
00:00]} 3. Nc3 {[%emt 0:00:00]} d5 {[%emt 0:00:08]} 4. Bg5 {[%emt 0:00:35]}
Nbd7 {[%emt 0:01:12]} 5. e3 {[%emt 0:00:22]} Be7 {[%emt 0:01:27]} 6. Nf3 {
[%emt 0:00:24]} O-O {[%emt 0:02:40]} 7. Qc2 {[%emt 0:00:13]} h6 {[%emt 0:02:28]
} 8. cxd5 {[%emt 0:00:07]} exd5 {[%emt 0:08:56]} 9. Bf4 {[%emt 0:00:28]} c6 {
[%emt 0:07:23]} 10. h3 {[%emt 0:01:08]} Re8 {[%emt 0:00:46]} 11. Bd3 {[%emt 0:
00:39]} Nf8 {[%emt 0:01:16]} 12. O-O-O {[%emt 0:08:40]} Bb4 {[%emt 0:02:12]}
13. Nd2 {[%emt 0:22:48]} Bxc3 {[%emt 0:08:47]} 14. Qxc3 {[%emt 0:07:31]} Ne4 {
[%emt 0:04:13]} 15. Nxe4 {[%emt 0:13:03]} dxe4 {[%emt 0:00:09]} 16. Bc2 {
[%emt 0:00:07]} Be6 {[%emt 0:04:43]} 17. g4 {[%emt 0:08:20]} a5 {[%emt 0:06:10]
} 18. Bb3 {[%emt 0:03:53]} a4 {[%emt 0:02:10]} 19. Bxe6 {[%emt 0:00:17]} Nxe6 {
[%emt 0:00:20]} 20. Bg3 {[%emt 0:00:14]} Qd5 {[%emt 0:00:52]} 21. Kb1 {[%emt 0:
00:19]} Rec8 {[%emt 0:09:26]} 22. Rd2 {[%emt 0:04:56]} b6 {[%emt 0:06:57]} 23.
Rc1 {[%emt 0:01:30]} b5 {[%emt 0:08:17]} 24. Qb4 {[%emt 0:02:34]} Rd8 {[%emt 0:
01:05]} 25. Rdc2 {[%emt 0:00:25]} Ra6 {[%emt 0:01:23]} 26. Qe7 {[%emt 0:03:42]}
c5 {[%emt 0:03:48]} 27. dxc5 {[%emt 0:06:04]} b4 {[%emt 0:01:53]} 28. c6 {
[%emt 0:01:00]} b3 {[%emt 0:00:56]} 29. Rc3 {[%emt 0:00:40]} bxa2+ {[%emt 0:06:
48]} 30. Ka1 {[%emt 0:00:04]} a3 {[%emt 0:00:14]} 31. Qb4 {[%emt 0:13:46]}
axb2+ {[%emt 0:05:13]} 32. Qxb2 {[%emt 0:00:02]} Ra5 {[%emt 0:02:23]} 33. c7 {
[%emt 0:00:58]} Rc8 {[%emt 0:00:20]} 34. Rb3 {[%emt 0:01:19]} Raa8 {[%emt 0:01:
33]} 35. Rb5 {[%emt 0:00:21]} Qd7 {[%emt 0:00:39]} 36. Rb8 {[%emt 0:00:46]}
Nxc7 {[%emt 0:00:38]} 37. Rxc8+ {[%emt 0:00:28]} Rxc8 {[%emt 0:00:18]} 38. Bxc7
{[%emt 0:00:15]} Kh7 {[%emt 0:00:42]} 39. Be5 {[%emt 0:00:15]} f6 {[%emt 0:00:
25]} 40. Rxc8 {[%emt 0:00:42]} Qxc8 {[%emt 0:00:01]} 41. Bd4 {[%emt 0:00:25]}
Qc4 {[%emt 0:00:14]} 42. h4 {[%emt 0:00:49]} Kg6 {[%emt 0:00:54]} 43. Qd2 {
[%emt 0:00:29]} h5 {[%emt 0:00:33]} 44. Qd1 {[%emt 0:00:22]} Qd5 {[%emt 0:00:
56]} 45. gxh5+ {[%emt 0:00:39]} Qxh5 {[%emt 0:00:20]} 46. Qg1+ {[%emt 0:00:44]}
Kh7 {[%emt 0:00:26]} 47. Qh1 {[%emt 0:00:15]} f5 {[%emt 0:00:43]} 48. Qg1 {
[%emt 0:00:20]} g6 {[%emt 0:00:25]} 49. Bf6 {[%emt 0:00:30]} Qe2 {[%emt 0:00:
25]} 50. Bb2 {[%emt 0:00:29]} Qc2 {[%emt 0:00:37]} 51. Qe1 {[%emt 0:00:47]} Kh6
{[%emt 0:00:27]} 52. Qc3 {[%emt 0:00:33]} Qb1# 0-1

[Event "V Open LLucmajor"]
[Site "LLucmajor"]
[Date "2016.05.15"]
[Round "8"]
[White "Rakhmanov, Aleksandr"]
[Black "Paunovic, Dragan"]
[Result "1-0"]
[ECO "A10"]
[WhiteElo "2654"]
[BlackElo "2439"]
[PlyCount "107"]
[EventDate "2016.??.??"]
[EventCountry "ESP"]
[TimeControl "5400+30"]
[WhiteClock "0:01:12"]
[BlackClock "0:06:44"]

1. c4 {[%emt 0:00:00]} g6 2. Nc3 {[%emt 0:00:00]} Bg7 {[%emt 0:00:32]} 3. g3 {
[%emt 0:00:00]} Nf6 {[%emt 0:04:36]} 4. Bg2 O-O 5. d3 {[%emt 0:01:09]} c6 {
[%emt 0:06:08]} 6. e4 {[%emt 0:00:11]} e5 {[%emt 0:00:07]} 7. Nge2 d6 {[%emt 0:
00:48]} 8. O-O {[%emt 0:00:57]} a6 {[%emt 0:00:00]} 9. a4 {[%emt 0:01:22]} a5 {
[%emt 0:02:00]} 10. h3 {[%emt 0:00:21]} Na6 {[%emt 0:12:04]} 11. Be3 {[%emt 0:
00:43]} Nc5 {[%emt 0:03:49]} 12. f4 {[%emt 0:03:57]} Nfd7 {[%emt 0:02:04]} 13.
f5 {[%emt 0:18:15]} Qb6 {[%emt 0:14:24]} 14. Rb1 Qb3 {[%emt 0:00:30]} 15. Qd2 {
[%emt 0:01:02]} Ra6 {[%emt 0:06:56]} 16. g4 Nxa4 {[%emt 0:00:30]} 17. Nc1 {
[%emt 0:23:06]} Qb4 {[%emt 0:00:10]} 18. N1a2 {[%emt 0:00:51]} Qb3 {[%emt 0:03:
04]} 19. Nc1 {[%emt 0:00:30]} Qb4 {[%emt 0:00:07]} 20. N1a2 {[%emt 0:00:03]}
Qb3 {[%emt 0:00:08]} 21. Nxa4 {[%emt 0:03:56]} Qxa4 {[%emt 0:04:46]} 22. Ra1 {
[%emt 0:03:39]} Qb3 {[%emt 0:04:01]} 23. Bf3 Nc5 24. Bxc5 {[%emt 0:10:57]} dxc5
{[%emt 0:00:35]} 25. Bd1 {[%emt 0:00:14]} Qb6 {[%emt 0:00:10]} 26. f6 {[%emt 0:
00:10]} Bh8 {[%emt 0:00:09]} 27. Kg2 {[%emt 0:04:16]} h6 {[%emt 0:06:07]} 28.
h4 {[%emt 0:00:37]} Qd8 {[%emt 0:00:30]} 29. g5 {[%emt 0:00:54]} Qd7 {[%emt 0:
04:28]} 30. Qe3 {[%emt 0:03:16]} Rd8 {[%emt 0:02:37]} 31. Nc1 {[%emt 0:01:35]}
b6 {[%emt 0:00:30]} 32. Ra3 {[%emt 0:03:23]} Qe6 {[%emt 0:04:42]} 33. Nb3 a4 {
[%emt 0:00:30]} 34. Nd2 {[%emt 0:01:06]} b5 35. Qg3 {[%emt 0:12:19]} Qd6 {
[%emt 0:03:27]} 36. Nf3 {[%emt 0:00:30]} Re8 {[%emt 0:01:32]} 37. Be2 {[%emt 0:
00:32]} h5 {[%emt 0:04:27]} 38. b3 axb3 {[%emt 0:00:30]} 39. Rxa6 {[%emt 0:03:
35]} Bxa6 {[%emt 0:00:02]} 40. Rb1 {[%emt 0:00:15]} b4 41. Nd2 Ra8 {[%emt 0:02:
45]} 42. Nxb3 {[%emt 0:01:57]} Bc8 {[%emt 0:00:18]} 43. Rb2 {[%emt 0:00:43]}
Bg4 {[%emt 0:00:11]} 44. Qf2 {[%emt 0:03:00]} Bxe2 {[%emt 0:00:26]} 45. Qxe2 {
[%emt 0:00:03]} Bxf6 {[%emt 0:00:37]} 46. gxf6 {[%emt 0:00:06]} Qxf6 {[%emt 0:
00:08]} 47. Qf2 {[%emt 0:00:49]} Qe6 {[%emt 0:00:47]} 48. Nxc5 {[%emt 0:00:19]}
Qg4+ {[%emt 0:00:07]} 49. Kh2 {[%emt 0:00:25]} Ra1 {[%emt 0:00:42]} 50. Rxb4 {
[%emt 0:01:27]} f5 {[%emt 0:04:04]} 51. Rb8+ {[%emt 0:00:11]} Kh7 {[%emt 0:00:
17]} 52. Nd7 {[%emt 0:01:22]} Qd1 {[%emt 0:00:57]} 53. Qg2 {[%emt 0:01:03]} Qc1
{[%emt 0:01:27]} 54. Nf8+ {[%emt 0:00:42]} 1-0